[Event "IIFL Wealth  4th Mumbai Junior U-13"]
[Site "Mumbai"]
[Date "2019.01.02"]
[Round "4"]
[White "Nehete Arnav"]
[Black "Ghadge Harsh"]
[Result "0-1"]
[ECO "D05"]
[WhiteElo "1544"]
[BlackElo "1265"]
[Annotator "NA RC"]
[PlyCount "78"]
[EventDate "2018.12.30"]
[EventType "swiss"]
[EventCountry "IND"]
[SourceTitle "playchess.com"]
[Source "ChessBase"]
[SourceQuality "1"]
[TimeControl "40/5400+30:1800+30"]

1. d4 {[%emt 0:00:25]} Nf6 {[%emt 0:02:40]} 2. Nf3 e6 {[%emt 0:01:38]} 3. e3 {[%emt 0:02:04]} d5 {[%emt 0:00:32]} 4. Bd3 {[%emt 0:00:05]} c5 {[%emt 0:00:17]} 5. c3 {[%emt 0:00:10]} Bd6 {[%emt 0:01:22]} 6. Nbd2 {[%emt 0:00:08]} Nc6 {[%emt 0:00:35]} 7. O-O {[%emt 0:00:23]} O-O {[%emt 0:00:22]} 8. Re1 {[%emt 0:01:21]} e5 {[%emt 0:05:00]} 9. e4 {[%emt 0:11:04]} dxe4 {[%emt 0:01:39]} 10. Nxe4 {[%emt 0:02:40]} Nxe4 {[%emt 0:05:00]} 11. Rxe4 {[%emt 0:01:06]} f5 {[%emt 0:02:16]} 12. Bc4+ {[%emt 0:00:40]} Kh8 {[%emt 0:00:09]} 13. Re1 {[%emt 0:14:42]} exd4 {[%emt 0:02:36]} 14. Ng5 {[%emt 0:05:57]} Qc7 {[%emt 0:09:50]} 15. Nxh7 {[%emt 0:05:47]} g6 {[%emt 0:02:15]} 16. Ng5 {[%emt 0:02:32]} Kg7 {[%emt 0:06:37]} 17. h3 {[%emt 0:01:48]} Bd7 {[%emt 0:04:20]} 18. Qd2 {[%emt 0:02:58]} f4 {[%emt 0:07:54]} 19. Nf3 {[%emt 0:28:31]} Rac8 {[%emt 0:05:20]} 20. cxd4 {[%emt 0:02:02]} cxd4 {[%emt 0:01:32]} 21. a3 {[%emt 0:01:43]} Rf6 {[%emt 0:01:41]} 22. Bb5 {[%emt 0:05:13]} Bc5 {[%emt 0:02:12]} 23. b4 {[%emt 0:02:38]} Bb6 {[%emt 0:01:58]} 24. Bb2 {[%emt 0:00:44]} Rd8 {[%emt 0:05:15]} 25. Bxc6 {[%emt 0:03:41]} Bxc6 {[%emt 0:02:30]} 26. Nxd4 {[%emt 0:00:10]} Kf7 {[%emt 0:01:11]} 27. Rad1 {[%emt 0:04:14]} Rfd6 {[%emt 0:01:01]} 28. Qxf4+ {[%emt 0:00:05]} Kg8 {[%emt 0:00:32]} 29. Qg4 {[%emt 0:00:53]} Qd7 {[%emt 0:02:01]} 30. Nxc6 {[%emt 0:00:36]} Qxg4 {[%emt 0:01:22]} 31. Ne7+ {[%emt 0:00:25]} Kf7 {[%emt 0:00:36]} 32. Rxd6 {[%emt 0:00:27]} Bxf2+ {[%emt 0:00:52]} 33. Kxf2 {[%emt 0:00:45]} Qf4+ {[%emt 0:00:05]} 34. Kg1 {[%emt 0:00:25]} Qxd6 {[%emt 0:00:03]} 35. g4 {[%emt 0:00:33]} Qb6+ {[%emt 0:00:32]} 36. Kf1 {[%emt 0:00:29]} Qc7 {[%emt 0:00:36]} 37. g5 {[%emt 0:00:23]} Qf4+ {[%emt 0:00:05]} 38. Kg1 {[%emt 0:00:31]} Qg3+ {[%emt 0:00:06]} 39. Kf1 {[%emt 0:00:07]} Rd2 {[%emt 0:00:16]} 0-1

[Event "IIFL Wealth  4th Mumbai Junior U-13"]
[Site "Mumbai"]
[Date "2019.01.02"]
[Round "4"]
[White "Rushyendra Chowdary Kantipudi"]
[Black "Darsh Shetty"]
[Result "1-0"]
[ECO "B27"]
[WhiteElo "1527"]
[BlackElo "1260"]
[Annotator "NA"]
[PlyCount "105"]
[EventDate "2018.12.30"]
[EventType "swiss"]
[EventCountry "IND"]
[SourceTitle "playchess.com"]
[Source "ChessBase"]
[SourceQuality "1"]
[TimeControl "40/5400+30:1800+30"]

1. e4 {[%emt 0:01:04]} c5 {[%emt 0:00:00]} 2. Nf3 {[%emt 0:03:08]} g6 {[%emt 0:00:00]} 3. Bc4 {[%emt 0:05:55]} Bg7 {[%emt 0:01:30]} 4. d3 {[%emt 0:00:50]} Nc6 {[%emt 0:00:15]} 5. Nc3 {[%emt 0:00:12]} e6 {[%emt 0:00:17]} 6. Nb5 {[%emt 0:01:22]} d6 {[%emt 0:01:30]} 7. Bf4 {[%emt 0:04:38]} e5 {[%emt 0:00:48]} 8. Bg3 {[%emt 0:01:13]} Nge7 {[%emt 0:00:56]} 9. Ng5 {[%emt 0:02:46]} O-O {[%emt 0:01:40]} 10. Qf3 {[%emt 0:03:33]} Nf5 {[%emt 0:04:19]} 11. Nxf7 {[%emt 0:13:18]} Rxf7 {[%emt 0:00:52]} 12. Bxf7+ {[%emt 0:00:07]} Kxf7 {[%emt 0:00:03]} 13. exf5 {[%emt 0:00:30]} Bxf5 {[%emt 0:00:55]} 14. O-O {[%emt 0:00:06]} a6 {[%emt 0:00:53]} 15. Qd5+ {[%emt 0:00:28]} Be6 {[%emt 0:00:42]} 16. Nxd6+ {[%emt 0:00:12]} Ke7 {[%emt 0:00:15]} 17. Bh4+ {[%emt 0:00:05]} Bf6 {[%emt 0:01:03]} 18. Bxf6+ {[%emt 0:00:05]} Kxf6 {[%emt 0:00:55]} 19. Ne4+ {[%emt 0:00:17]} Kf7 {[%emt 0:00:31]} 20. Qxd8 {[%emt 0:00:32]} Rxd8 {[%emt 0:00:24]} 21. Nxc5 {[%emt 0:00:53]} Bc8 {[%emt 0:01:21]} 22. Nb3 {[%emt 0:00:42]} b5 {[%emt 0:01:23]} 23. a3 {[%emt 0:00:05]} Bb7 {[%emt 0:00:23]} 24. f4 {[%emt 0:00:24]} exf4 {[%emt 0:00:46]} 25. Rxf4+ {[%emt 0:00:03]} Kg7 {[%emt 0:00:49]} 26. Raf1 {[%emt 0:00:19]} Rd7 {[%emt 0:00:20]} 27. Nc5 {[%emt 0:00:07]} Re7 {[%emt 0:00:21]} 28. Nxb7 {[%emt 0:00:26]} Rxb7 {[%emt 0:00:03]} 29. Rf6 {[%emt 0:00:23]} Rc7 {[%emt 0:00:20]} 30. Rd6 {[%emt 0:00:24]} Ne5 {[%emt 0:00:37]} 31. c3 {[%emt 0:01:46]} a5 {[%emt 0:00:40]} 32. Rd5 {[%emt 0:00:05]} Re7 {[%emt 0:00:13]} 33. Rf4 {[%emt 0:02:56]} Nf7 {[%emt 0:01:16]} 34. Rxb5 {[%emt 0:00:25]} h5 {[%emt 0:00:09]} 35. Rxa5 {[%emt 0:02:39]} Ne5 {[%emt 0:00:09]} 36. Re4 {[%emt 0:00:07]} Nc6 {[%emt 0:00:25]} 37. Rxe7+ {[%emt 0:00:06]} Nxe7 {[%emt 0:00:28]} 38. Ra7 {[%emt 0:00:14]} Kf6 {[%emt 0:00:05]} 39. Rxe7 {[%emt 0:00:04]} Kxe7 {[%emt 0:00:22]} 40. b4 {[%emt 0:00:00]} Kd6 {[%emt 0:00:00]} 41. a4 {[%emt 0:00:10]} Kc6 {[%emt 0:00:48]} 42. c4 {[%emt 0:00:06]} Kb6 {[%emt 0:00:10]} 43. a5+ {[%emt 0:00:07]} Ka6 {[%emt 0:00:19]} 44. d4 {[%emt 0:00:04]} Kb7 {[%emt 0:00:11]} 45. b5 {[%emt 0:00:05]} Kc7 {[%emt 0:00:11]} 46. c5 {[%emt 0:00:10]} Kb7 {[%emt 0:00:07]} 47. a6+ {[%emt 0:00:05]} Ka7 {[%emt 0:00:17]} 48. d5 {[%emt 0:00:06]} Kb8 {[%emt 0:00:17]} 49. b6 {[%emt 0:00:05]} h4 {[%emt 0:00:30]} 50. c6 {[%emt 0:00:05]} h3 {[%emt 0:00:10]} 51. a7+ {[%emt 0:00:04]} Ka8 {[%emt 0:00:13]} 52. d6 {[%emt 0:00:06]} hxg2 {[%emt 0:00:12]} 53. d7 {[%emt 0:00:05]} 1-0

[Event "IIFL Wealth  4th Mumbai Junior U-13"]
[Site "Mumbai"]
[Date "2019.01.02"]
[Round "4"]
[White "Dhanvij Ansh"]
[Black "Manish Anto Cristiano F"]
[Result "1/2-1/2"]
[ECO "D10"]
[WhiteElo "1523"]
[BlackElo "2065"]
[Annotator "NA RC"]
[PlyCount "91"]
[EventDate "2018.12.30"]
[EventType "swiss"]
[EventCountry "IND"]
[SourceTitle "playchess.com"]
[Source "ChessBase"]
[SourceQuality "1"]
[TimeControl "40/5400+30:1800+30"]

1. d4 {[%emt 0:10:37]} d5 {[%emt 0:00:00]} 2. c4 {[%emt 0:00:44]} c6 {[%emt 0:00:13]} 3. cxd5 {[%emt 0:00:27]} cxd5 {[%emt 0:00:23]} 4. Nc3 {[%emt 0:00:21]} Nc6 {[%emt 0:00:54]} 5. Bf4 {[%emt 0:00:07]} Nf6 {[%emt 0:00:18]} 6. e3 {[%emt 0:00:15]} e6 {[%emt 0:00:47]} 7. Nf3 {[%emt 0:00:18]} Bd6 {[%emt 0:01:08]} 8. Bxd6 {[%emt 0:00:46]} Qxd6 {[%emt 0:01:18]} 9. Bd3 {[%emt 0:00:07]} a6 {[%emt 0:00:41] D13: Slav Defence: Exchange variation without ...Bf5} (9... O-O 10. O-O Bd7 11. Rc1 Rac8 12. a3 Rfd8 13. b4 Be8 14. Qb3 Ne7 15. Ne5 Rc7 16. Na4 Rdc8 17. Rxc7 Qxc7 18. b5 Qa5 19. Qb4 Qxb4 20. axb4 b6 {0-1 (51) Paravyan,D (2629)-Dreev,A (2649) Moscow 2018}) 10. a4 {[%emt 0:00:42]} O-O {[%emt 0:01:26]} 11. O-O {[%emt 0:00:36]} b6 {[%emt 0:04:03]} 12. Rc1 $146 {[%emt 0:02:22]} ({Predecessor:} 12. Qe2 Nb4 13. Rfc1 Bd7 14. Ne5 Rfc8 15. Nxd7 Qxd7 16. b3 Nxd3 17. Qxd3 Qd6 18. f3 Ne8 {½-½ (32) Al Khateeb,T (1963)-Al Awadhi,W (1954) Kuwait 2013}) 12... Bb7 {[%emt 0:00:23]} 13. Qe2 {[%emt 0:00:05]} Rfc8 {[%emt 0:05:59]} 14. Rfd1 {[%emt 0:02:55]} h6 {[%emt 0:01:00]} 15. Bb1 {[%emt 0:04:32]} Nd7 {[%emt 0:04:51]} 16. e4 {[%emt 0:03:13]} dxe4 {[%emt 0:00:19]} 17. Nxe4 {[%emt 0:00:22]} Qe7 {[%emt 0:01:44]} 18. Ng3 {[%emt 0:06:59]} Nb4 {[%emt 0:01:42]} 19. Nf5 {[%emt 0:04:10]} Qf6 {[%emt 0:05:43]} 20. Nd6 {[%emt 0:00:48]} Rxc1 {[%emt 0:03:49]} 21. Rxc1 {[%emt 0:00:11]} Qf4 {[%emt 0:01:31]} 22. Rc7 {[%emt 0:00:34]} Qxd6 {[%emt 0:11:16]} 23. Rxb7 {[%emt 0:00:44]} Rc8 {[%emt 0:02:44]} 24. Qe1 {[%emt 0:05:55]} Nf8 {[%emt 0:04:49]} (24... a5 $15) 25. Kf1 {[%emt 0:09:00]} Qf4 {[%emt 0:02:38]} 26. Qd2 {[%emt 0:07:04]} Rc1+ {[%emt 0:03:47]} 27. Ke2 {[%emt 0:00:16]} Nd5 {[%emt 0:00:13]} 28. Bd3 {[%emt 0:02:32]} Ra1 {[%emt 0:00:15]} 29. Qxf4 {[%emt 0:01:58]} Nxf4+ {[%emt 0:01:43]} 30. Kd2 {[%emt 0:00:07]} Nxg2 {[%emt 0:08:49]} 31. Bxa6 {[%emt 0:01:29]} Rxa4 {[%emt 0:00:28]} 32. Rxb6 {[%emt 0:00:13]} Nd7 {[%emt 0:00:13]} 33. Rd6 {[%emt 0:00:19]} Nf6 {[%emt 0:00:16]} 34. Rd8+ {[%emt 0:00:47]} Kh7 {[%emt 0:00:11]} 35. Bd3+ {[%emt 0:00:12]} g6 {[%emt 0:00:14]} 36. Rb8 {[%emt 0:01:36]} Ng4 {[%emt 0:04:32]} 37. Rb7 {[%emt 0:02:18]} Kg8 {[%emt 0:00:18]} 38. Kc3 {[%emt 0:03:24]} Nxf2 {[%emt 0:01:25]} 39. Bc2 {[%emt 0:00:20]} Ra8 {[%emt 0:00:42]} 40. Ne5 {[%emt 0:00:00]} Rf8 {[%emt 0:00:00]} 41. b4 {[%emt 0:03:37]} Nf4 {[%emt 0:03:22]} 42. b5 {[%emt 0:04:15]} Nd5+ {[%emt 0:00:50]} 43. Kb2 {[%emt 0:00:39]} g5 {[%emt 0:00:49]} 44. Bb3 {[%emt 0:02:55]} Ne4 {[%emt 0:08:10]} 45. Bxd5 $1 exd5 $18 46. Rd7 $2 (46. b6 $18) 1/2-1/2

[Event "IIFL Wealth  4th Mumbai Junior U-13"]
[Site "Mumbai"]
[Date "2019.01.02"]
[Round "4"]
[White "Ratnapriya K"]
[Black "Sadbhav Rautela"]
[Result "1/2-1/2"]
[ECO "B78"]
[WhiteElo "1516"]
[BlackElo "1746"]
[Annotator "NA"]
[PlyCount "78"]
[EventDate "2018.12.30"]
[EventType "swiss"]
[EventCountry "IND"]
[SourceTitle "playchess.com"]
[Source "ChessBase"]
[SourceQuality "1"]
[TimeControl "40/5400+30:1800+30"]

1. e4 {[%emt 0:00:00]} c5 {[%emt 0:02:15]} 2. Nf3 {[%emt 0:00:00]} Nc6 {[%emt 0:00:48]} 3. d4 {[%emt 0:00:00]} cxd4 {[%emt 0:00:26]} 4. Nxd4 {[%emt 0:00:13]} Nf6 {[%emt 0:00:07]} 5. Nc3 {[%emt 0:00:30]} g6 {[%emt 0:00:12]} 6. Be3 {[%emt 0:00:25]} Bg7 {[%emt 0:00:07]} 7. f3 {[%emt 0:00:35]} O-O {[%emt 0:00:20]} 8. Bc4 {[%emt 0:00:08]} d6 {[%emt 0:00:32]} 9. Qd2 {[%emt 0:00:23]} Bd7 {[%emt 0:00:17]} 10. O-O-O {[%emt 0:00:27]} Rc8 {[%emt 0:00:15]} 11. Bb3 {[%emt 0:00:11]} Nxd4 {[%emt 0:00:08]} 12. Bxd4 {[%emt 0:00:18]} b5 {[%emt 0:00:11]} 13. Nd5 {[%emt 0:00:12]} Nxd5 {[%emt 0:00:09]} 14. Bxg7 {[%emt 0:00:19]} Kxg7 {[%emt 0:00:06]} 15. exd5 {[%emt 0:00:18]} a5 {[%emt 0:00:53]} 16. a3 {[%emt 0:00:19]} Kg8 {[%emt 0:01:34]} 17. Rhe1 {[%emt 0:01:10]} b4 {[%emt 0:04:45]} 18. axb4 {[%emt 0:00:19]} axb4 {[%emt 0:00:08]} 19. Qxb4 {[%emt 0:00:39]} Rb8 {[%emt 0:07:26]} 20. Qc3 {[%emt 0:08:50]} Re8 {[%emt 0:16:48]} 21. h4 {[%emt 0:03:35]} Qb6 {[%emt 0:05:50]} 22. Qe3 {[%emt 0:05:15]} Qa5 {[%emt 0:07:56]} 23. Qc3 {[%emt 0:05:58]} Qb6 {[%emt 0:21:58]} 24. Qe3 {[%emt 0:05:35]} Qa5 {[%emt 0:11:47]} 25. Qc3 {[%emt 0:00:25]} Qb6 {[%emt 0:06:19]} 26. Qe3 {[%emt 0:02:56]} Qa5 {[%emt 0:00:56]} 27. Qc3 {[%emt 0:01:27]} Qa7 {[%emt 0:03:57]} 28. Qd4 {[%emt 0:02:13]} Qa5 {[%emt 0:03:41]} 29. Qc3 {[%emt 0:00:19]} Qb6 {[%emt 0:00:27]} 30. Qe3 {[%emt 0:00:52]} Qa5 {[%emt 0:00:13]} 31. Qc3 {[%emt 0:00:29]} Qb6 {[%emt 0:00:34]} 32. Qe3 {[%emt 0:00:34]} Qa5 {[%emt 0:00:13]} 33. Qc3 {[%emt 0:00:49]} Qb6 {[%emt 0:00:08]} 34. Qe3 {[%emt 0:00:51]} Qa5 {[%emt 0:00:51]} 35. Qc3 {[%emt 0:00:18]} Qb6 {[%emt 0:00:16]} 36. Qe3 {[%emt 0:00:19]} Qa5 {[%emt 0:00:38]} 37. Qc3 {[%emt 0:00:25]} Qb6 {[%emt 0:00:13]} 38. Qe3 {[%emt 0:00:14]} Qa5 {[%emt 0:00:21]} 39. Qc3 {[%emt 0:01:18]} Qb6 {[%emt 0:01:03]} 1/2-1/2

[Event "IIFL Wealth  4th Mumbai Junior U-13"]
[Site "Mumbai"]
[Date "2019.01.02"]
[Round "4"]
[White "Marium Fatima"]
[Black "Bulsara Yazaan"]
[Result "1-0"]
[ECO "A46"]
[WhiteElo "1494"]
[BlackElo "1244"]
[Annotator "NA RC"]
[PlyCount "95"]
[EventDate "2018.12.30"]
[EventType "swiss"]
[EventCountry "IND"]
[SourceTitle "playchess.com"]
[Source "ChessBase"]
[SourceQuality "1"]
[TimeControl "40/5400+30:1800+30"]

1. d4 {[%emt 0:00:00]} Nf6 {[%emt 0:00:00]} 2. Nf3 {[%emt 0:00:00]} e6 {[%emt 0:00:00]} 3. g3 {[%emt 0:00:00]} d5 {[%emt 0:00:53]} 4. Bg2 {[%emt 0:00:12]} Be7 {[%emt 0:01:31]} 5. O-O {[%emt 0:00:08]} O-O {[%emt 0:00:43]} 6. b3 {[%emt 0:00:07]} Ne4 {[%emt 0:00:50]} 7. Bb2 {[%emt 0:00:11]} Nd7 {[%emt 0:00:55]} 8. Nbd2 {[%emt 0:00:36]} f5 {[%emt 0:00:40]} 9. c4 {[%emt 0:00:28]} c6 {[%emt 0:00:37]} 10. Rc1 {[%emt 0:02:36]} Ndf6 {[%emt 0:02:01]} 11. Qc2 {[%emt 0:00:50]} Bd7 {[%emt 0:03:53]} 12. Ne5 {[%emt 0:01:38]} Nxd2 {[%emt 0:03:15]} 13. Qxd2 {[%emt 0:00:52]} Ne4 {[%emt 0:00:21]} 14. Qc2 {[%emt 0:03:42]} Rc8 {[%emt 0:02:53]} 15. f3 {[%emt 0:03:15]} Nf6 {[%emt 0:00:54]} 16. e4 {[%emt 0:05:25]} fxe4 {[%emt 0:08:30]} 17. fxe4 {[%emt 0:00:14]} dxe4 {[%emt 0:15:22]} 18. Bxe4 {[%emt 0:00:21]} Nxe4 {[%emt 0:00:20]} 19. Qxe4 {[%emt 0:02:38]} Bf6 {[%emt 0:03:32]} 20. Nd3 {[%emt 0:02:36]} Qe7 {[%emt 0:01:31]} 21. Rce1 {[%emt 0:03:39]} b6 {[%emt 0:05:04]} 22. c5 {[%emt 0:02:56]} Rfe8 {[%emt 0:13:33]} 23. Ba3 {[%emt 0:05:54]} Qd8 {[%emt 0:02:01]} 24. Bc1 {[%emt 0:05:39]} Re7 {[%emt 0:05:08]} 25. Bf4 {[%emt 0:01:02]} bxc5 {[%emt 0:12:40]} 26. dxc5 {[%emt 0:02:40]} Re8 {[%emt 0:09:29]} 27. Be5 {[%emt 0:02:29]} Bxe5 {[%emt 0:01:01]} 28. Nxe5 {[%emt 0:00:03]} Re7 {[%emt 0:00:41]} 29. Rd1 {[%emt 0:01:07]} Rc7 {[%emt 0:00:59]} 30. Qf3 {[%emt 0:03:46]} Qe8 {[%emt 0:00:49]} 31. Nxd7 {[%emt 0:01:01]} Rcxd7 {[%emt 0:01:02]} 32. Rxd7 {[%emt 0:00:10]} Rxd7 {[%emt 0:00:09]} 33. Qxc6 {[%emt 0:00:05]} Qe7 {[%emt 0:00:39]} 34. Re1 {[%emt 0:00:31]} e5 {[%emt 0:00:37]} 35. b4 {[%emt 0:01:10]} Rd4 {[%emt 0:00:50]} 36. Qc8+ {[%emt 0:00:52]} Kf7 {[%emt 0:00:18]} 37. Rf1+ {[%emt 0:00:31]} Kg6 {[%emt 0:00:45]} 38. Qc6+ {[%emt 0:01:47]} Kg5 {[%emt 0:00:18]} 39. h4+ {[%emt 0:00:34]} Kh5 {[%emt 0:00:34]} 40. Qf3+ {[%emt 0:00:00]} Kh6 {[%emt 0:00:00]} 41. Qe3+ {[%emt 0:03:18]} Kg6 {[%emt 0:01:02]} 42. a3 {[%emt 0:02:46]} h6 {[%emt 0:01:42]} 43. Re1 {[%emt 0:00:49]} Kf6 {[%emt 0:01:24]} 44. Qf2+ {[%emt 0:00:14]} Ke6 {[%emt 0:00:30]} 45. Qxd4 {[%emt 0:00:06]} Kf6 {[%emt 0:00:25]} 46. Qd6+ {[%emt 0:00:13]} Qxd6 {[%emt 0:00:19]} 47. cxd6 {[%emt 0:00:06]} Ke6 {[%emt 0:00:09]} 48. Rd1 {[%emt 0:00:06] Kd5} 1-0

[Event "IIFL Wealth  4th Mumbai Junior U-13"]
[Site "Mumbai"]
[Date "2019.01.02"]
[Round "4"]
[White "Arjun Sidharth S"]
[Black "Bang Atharva"]
[Result "1-0"]
[ECO "D04"]
[WhiteElo "1489"]
[BlackElo "1582"]
[Annotator "NA"]
[PlyCount "120"]
[EventDate "2018.12.30"]
[EventType "swiss"]
[EventCountry "IND"]
[SourceTitle "playchess.com"]
[Source "ChessBase"]
[SourceQuality "1"]
[TimeControl "40/5400+30:1800+30"]

1. d4 {[%emt 0:00:25]} Nf6 {[%emt 0:00:00]} 2. Nf3 {[%emt 0:00:39]} d5 {[%emt 0:00:00]} 3. e3 {[%emt 0:00:11]} c6 {[%emt 0:00:00]} 4. Bd3 {[%emt 0:00:59]} e6 {[%emt 0:01:44]} 5. Nbd2 {[%emt 0:00:32]} Bd6 {[%emt 0:00:08]} 6. O-O {[%emt 0:00:31]} Nbd7 {[%emt 0:00:24]} 7. e4 {[%emt 0:01:18]} dxe4 {[%emt 0:00:07]} 8. Nxe4 {[%emt 0:00:09]} Nxe4 {[%emt 0:00:07]} 9. Bxe4 {[%emt 0:00:08]} Nf6 {[%emt 0:00:07]} 10. Bd3 {[%emt 0:00:18]} O-O {[%emt 0:00:23]} 11. c3 {[%emt 0:08:22]} Qc7 {[%emt 0:02:10]} 12. Re1 {[%emt 0:10:09]} Bf4 {[%emt 0:05:25]} 13. Ne5 {[%emt 0:02:37]} Bxc1 {[%emt 0:01:03]} 14. Rxc1 {[%emt 0:00:08]} b6 15. Bb1 {[%emt 0:03:47]} Bb7 {[%emt 0:15:29]} 16. Qd3 {[%emt 0:11:30]} Rfd8 {[%emt 0:02:26]} 17. Qg3 {[%emt 0:10:05]} c5 {[%emt 0:09:57]} 18. dxc5 {[%emt 0:03:33]} Qxc5 {[%emt 0:00:57]} 19. Rcd1 {[%emt 0:05:13]} Be4 {[%emt 0:04:23]} 20. Bxe4 {[%emt 0:03:54]} Nxe4 {[%emt 0:00:07]} 21. Qf4 {[%emt 0:01:46]} Nf6 {[%emt 0:02:45]} 22. Ng4 {[%emt 0:02:49]} Nxg4 23. Qxg4 Qc7 {[%emt 0:06:49]} 24. Qf3 {[%emt 0:05:36]} Rxd1 {[%emt 0:00:36]} 25. Rxd1 {[%emt 0:00:11]} Rd8 {[%emt 0:00:09]} 26. g3 {[%emt 0:02:08]} h6 {[%emt 0:02:57]} 27. Rd3 {[%emt 0:00:45]} Rxd3 {[%emt 0:05:05]} 28. Qxd3 {[%emt 0:00:22]} Qe5 {[%emt 0:00:13]} 29. Qd2 {[%emt 0:04:53]} Qe4 {[%emt 0:05:37]} 30. b3 {[%emt 0:00:24]} Qd5 {[%emt 0:00:56]} 31. Qxd5 {[%emt 0:05:56]} exd5 {[%emt 0:00:01]} 32. Kf1 {[%emt 0:00:24]} Kf8 {[%emt 0:00:10]} 33. Ke2 {[%emt 0:00:08]} Ke7 {[%emt 0:00:10]} 34. Ke3 {[%emt 0:00:06]} Ke6 {[%emt 0:00:06]} 35. Kd4 {[%emt 0:00:38]} Kd6 {[%emt 0:00:06]} 36. c4 {[%emt 0:01:38]} dxc4 {[%emt 0:00:07]} 37. Kxc4 {[%emt 0:00:09]} a6 {[%emt 0:00:48]} 38. Kd4 {[%emt 0:00:08]} Kc6 {[%emt 0:00:52]} 39. Kc4 {[%emt 0:00:51]} g6 {[%emt 0:00:42]} 40. b4 {[%emt 0:00:00]} a5 {[%emt 0:00:00]} 41. bxa5 {[%emt 0:04:21]} bxa5 {[%emt 0:00:32]} 42. a4 {[%emt 0:00:09]} h5 {[%emt 0:00:55]} 43. f4 {[%emt 0:02:00]} f6 {[%emt 0:00:45]} 44. h3 {[%emt 0:02:19]} g5 {[%emt 0:02:22]} 45. f5 {[%emt 0:00:17]} h4 {[%emt 0:06:27]} 46. g4 {[%emt 0:00:08]} Kd6 {[%emt 0:00:05]} 47. Kb5 {[%emt 0:00:12]} Ke5 {[%emt 0:00:05]} 48. Kxa5 {[%emt 0:00:04]} Kf4 {[%emt 0:00:13]} 49. Kb5 {[%emt 0:00:26]} Kg3 {[%emt 0:00:48]} 50. a5 {[%emt 0:00:07]} Kxh3 {[%emt 0:00:08]} 51. a6 {[%emt 0:00:05]} Kxg4 {[%emt 0:01:40]} 52. a7 {[%emt 0:00:12]} Kxf5 {[%emt 0:00:37]} 53. a8=Q {[%emt 0:00:07]} g4 {[%emt 0:00:14]} 54. Qg2 {[%emt 0:00:04]} Kg5 {[%emt 0:00:19]} 55. Kc4 {[%emt 0:00:28]} h3 {[%emt 0:00:25]} 56. Qf2 {[%emt 0:01:48]} f5 {[%emt 0:00:15]} 57. Kd4 {[%emt 0:00:07]} f4 {[%emt 0:00:06]} 58. Ke4 {[%emt 0:00:27]} f3 {[%emt 0:01:35]} 59. Qg3 {[%emt 0:00:05]} Kh5 {[%emt 0:00:17]} 60. Kf5 {[%emt 0:00:14]} f2 {[%emt 0:00:15]} 1-0

[Event "IIFL Wealth  4th Mumbai Junior U-13"]
[Site "Mumbai"]
[Date "2019.01.02"]
[Round "4"]
[White "Balkawade Sai"]
[Black "Aashrita Narayan"]
[Result "1-0"]
[ECO "B01"]
[WhiteElo "1482"]
[BlackElo "1238"]
[Annotator "NA RC"]
[PlyCount "75"]
[EventDate "2018.12.30"]
[EventType "swiss"]
[EventCountry "IND"]
[SourceTitle "playchess.com"]
[Source "ChessBase"]
[SourceQuality "1"]
[TimeControl "40/5400+30:1800+30"]

1. e4 {[%emt 0:00:00]} d5 {[%emt 0:00:00]} 2. exd5 {[%emt 0:00:00]} Nf6 {[%emt 0:00:00]} 3. d4 {[%emt 0:00:51]} Bg4 {[%emt 0:00:00]} 4. Be2 {[%emt 0:01:51]} Bxe2 {[%emt 0:00:10]} 5. Qxe2 {[%emt 0:01:34]} Nxd5 {[%emt 0:00:32]} 6. c4 {[%emt 0:08:34]} Nf6 {[%emt 0:01:43]} 7. Nf3 {[%emt 0:01:05]} e6 {[%emt 0:05:53]} 8. d5 {[%emt 0:07:12]} Bb4+ {[%emt 0:01:29]} 9. Bd2 {[%emt 0:04:35]} Bxd2+ {[%emt 0:02:12]} 10. Nbxd2 {[%emt 0:01:25]} O-O {[%emt 0:00:49]} 11. dxe6 {[%emt 0:16:23]} Re8 {[%emt 0:00:28]} 12. exf7+ {[%emt 0:16:21]} Kxf7 {[%emt 0:01:18]} 13. Ne5+ {[%emt 0:00:13]} Kg8 {[%emt 0:02:32]} 14. O-O-O {[%emt 0:13:23]} Qe7 {[%emt 0:06:59]} 15. f4 {[%emt 0:04:31]} Nc6 {[%emt 0:02:32]} 16. Ndf3 {[%emt 0:01:16]} Nd7 {[%emt 0:05:55]} 17. Rhe1 {[%emt 0:02:11]} Nc5 {[%emt 0:15:31]} 18. Kb1 {[%emt 0:12:40]} Rad8 {[%emt 0:03:32]} 19. Nxc6 {[%emt 0:04:25]} Rxd1+ {[%emt 0:00:51]} 20. Qxd1 {[%emt 0:00:22]} Qf7 {[%emt 0:05:14]} 21. Rxe8+ {[%emt 0:00:13]} Qxe8 {[%emt 0:00:10]} 22. Qd8 {[%emt 0:00:54]} Qxd8 {[%emt 0:01:06]} 23. Nxd8 {[%emt 0:00:02]} b6 {[%emt 0:00:00]} 24. Kc2 {[%emt 0:00:00]} Kf8 {[%emt 0:00:58]} 25. b4 {[%emt 0:00:36]} Na6 {[%emt 0:01:23]} 26. Kc3 {[%emt 0:00:30]} Ke8 {[%emt 0:01:26]} 27. Nc6 {[%emt 0:00:25]} Kd7 {[%emt 0:03:34]} 28. Nfe5+ {[%emt 0:00:40]} Kd6 {[%emt 0:02:03]} 29. g4 {[%emt 0:00:46]} h6 {[%emt 0:02:25]} 30. h4 {[%emt 0:00:19]} Ke6 {[%emt 0:02:35]} 31. Nd3 {[%emt 0:00:30]} Kd6 {[%emt 0:01:09]} 32. b5 {[%emt 0:00:12]} Nc5 {[%emt 0:00:45]} 33. Nxc5 {[%emt 0:00:04]} Kxc5 {[%emt 0:00:37]} 34. g5 {[%emt 0:00:22]} a6 {[%emt 0:01:02]} 35. bxa6 {[%emt 0:00:25]} Kxc6 {[%emt 0:00:13]} 36. f5 {[%emt 0:00:05]} b5 {[%emt 0:01:57]} 37. cxb5+ {[%emt 0:00:01]} Kxb5 {[%emt 0:00:13]} 38. a7 {[%emt 0:00:09]} 1-0